bitfinex-derivatives/quotes_BTCF0:USTF0_20250106
["timestamp","ask_amount","ask_price","bid_price","bid_amount"]
[1736154255046,0.3608,99186.0,99185.0,0.050428]
[1736154257054,0.3608,99186.0,99185.0,0.053428]
[1736154257444,0.3608,99186.0,99185.0,0.054428]
[1736154263261,0.3608,99186.0,99185.0,0.394428]
[1736154265170,0.3608,99186.0,99185.0,0.054428]
[1736154275372,0.11986687,99191.0,99190.0,0.050425]
[1736154276177,0.11986687,99192.0,99191.0,0.050425]
[1736154277273,0.11986687,99199.0,99198.0,0.050421]
[1736154278484,0.050419,99204.0,99191.0,0.001]
[1736154278689,0.050419,99204.0,99199.0,0.050421]
[1736154278867,0.3608,99205.0,99199.0,0.050421]
[1736154279071,0.05042,99201.0,99199.0,0.050421]
[1736154279667,0.101,99200.0,99199.0,0.050421]
[1736154280080,0.27354174,99200.0,99199.0,0.050421]
[1736154281784,0.15342,99200.0,99199.0,0.050421]
[1736154303004,0.103,99200.0,99199.0,0.050421]
[1736154304112,0.4638,99200.0,99199.0,0.050421]
[1736154305207,0.51283249,99200.0,99199.0,0.050421]
[1736154307709,0.4638,99200.0,99199.0,0.050421]
[1736154310314,0.51422,99200.0,99197.0,0.24152307]
[1736154310619,0.050421,99198.0,99197.0,0.24152307]
[1736154311815,0.52726216,99200.0,99193.0,0.050424]
[1736154311816,0.050423,99194.0,99193.0,0.29194707]
[1736154313538,0.20098692,99194.0,99193.0,0.050424]
[1736154316421,0.050423,99194.0,99193.0,0.050424]
[1736154319623,0.20098692,99194.0,99193.0,0.050424]
[1736154321026,0.050423,99194.0,99193.0,0.050424]
[1736154327229,0.15056392,99197.0,99196.0,0.050422]
[1736154328633,0.15156392,99197.0,99196.0,0.050422]
[1736154329525,0.15256392,99197.0,99196.0,0.050422]
[1736154329725,0.05103588,99197.0,99196.0,0.050422]
[1736154330129,0.41183588,99197.0,99196.0,0.050422]
[1736154330730,0.050428,99185.0,99184.0,0.29195107]
[1736154330925,0.411228,99185.0,99184.0,0.24152307]
[1736154331937,0.05043,99181.0,99180.0,0.05043]
[1736154334435,0.050431,99180.0,99173.0,0.24152307]
[1736154334637,0.050431,99180.0,99177.0,0.050432]
[1736154334837,0.050431,99180.0,99171.0,0.01248729]
[1736154334838,0.050431,99180.0,99179.0,0.05194313]
[1736154335038,0.050431,99180.0,99179.0,0.050431]
[1736154335539,0.052431,99180.0,99179.0,0.050431]
[1736154336036,0.056431,99180.0,99179.0,0.050431]
[1736154336340,0.050434,99176.0,99175.0,0.050433]
[1736154336635,0.411234,99176.0,99175.0,0.050433]
[1736154337632,0.414234,99176.0,99175.0,0.050433]
[1736154338435,0.415234,99176.0,99175.0,0.050433]
[1736154342235,0.054434,99176.0,99175.0,0.050433]
[1736154342438,0.415234,99176.0,99175.0,0.050433]
[1736154343531,0.53539847,99176.0,99175.0,0.050433]
[1736154345141,0.17459847,99176.0,99175.0,0.050433]
[1736154345441,0.53539847,99176.0,99175.0,0.050433]
[1736154349839,0.415234,99176.0,99175.0,0.050433]
[1736154351339,0.53539847,99176.0,99175.0,0.050433]
[1736154353138,0.415234,99176.0,99175.0,0.050433]
[1736154354638,0.53539847,99176.0,99175.0,0.050433]
[1736154355941,0.415234,99176.0,99175.0,0.050433]
[1736154358539,0.054434,99176.0,99175.0,0.050433]
[1736154358952,0.415234,99176.0,99175.0,0.050433]
[1736154365750,0.46428117,99176.0,99175.0,0.050433]
[1736154367145,0.415234,99176.0,99175.0,0.050433]
[1736154370956,0.64418595,99176.0,99175.0,0.050433]
[1736154372256,0.46428011,99176.0,99175.0,0.050433]
[1736154373853,0.10348011,99176.0,99175.0,0.050433]
[1736154374050,0.46428011,99176.0,99175.0,0.050433]
[1736154377861,0.10348011,99176.0,99175.0,0.050433]
[1736154378059,0.46428011,99176.0,99175.0,0.050433]
[1736154387075,0.41384611,99176.0,99175.0,0.050433]
[1736154387465,0.3648,99176.0,99175.0,0.050433]
[1736154394069,0.48513762,99176.0,99175.0,0.390433]
[1736154395467,0.3648,99176.0,99175.0,0.390433]
[1736154399071,0.3648,99176.0,99175.0,0.050433]
[1736154401174,0.48513762,99176.0,99175.0,0.050433]
[1736154402771,0.3648,99176.0,99175.0,0.050433]
[1736154405679,0.48509515,99176.0,99175.0,0.050433]
[1736154407173,0.48509515,99176.0,99175.0,0.23184705]
[1736154410383,0.48509515,99176.0,99175.0,0.050433]
[1736154411279,0.3648,99176.0,99175.0,0.050433]
[1736154418681,0.004,99176.0,99175.0,0.050433]
[1736154420179,0.004,99176.0,99175.0,0.29250048]
[1736154421379,0.004,99176.0,99175.0,0.050433]
[1736154422688,0.004,99176.0,99175.0,0.29250048]
[1736154427985,0.004,99176.0,99175.0,0.050433]
[1736154429197,0.004,99176.0,99175.0,0.29250048]
[1736154429385,0.004,99176.0,99175.0,0.65330048]
[1736154429997,0.004,99176.0,99175.0,0.99330048]
[1736154430383,0.004,99176.0,99175.0,1.01649388]
[1736154434698,0.004,99176.0,99175.0,0.751233]
[1736154442701,0.004,99176.0,99175.0,0.050433]
[1736154448905,0.004,99176.0,99175.0,0.23177967]
[1736154451402,0.004,99176.0,99175.0,0.050433]
[1736154452414,0.0723,99176.0,99175.0,0.050433]
[1736154454402,0.0723,99176.0,99175.0,0.23179646]
[1736154455714,0.0723,99176.0,99175.0,0.050433]
[1736154464718,0.19261145,99176.0,99175.0,0.050433]
[1736154467513,0.0723,99176.0,99175.0,0.050433]
[1736154474026,0.0723,99176.0,99175.0,0.29222082]
[1736154474527,0.4331,99176.0,99175.0,0.29222082]
[1736154475523,0.4331,99176.0,99175.0,0.050433]
[1736154478430,0.0723,99176.0,99175.0,0.050433]
[1736154479329,0.004,99176.0,99175.0,0.050433]
[1736154513646,0.004,99176.0,99175.0,0.390433]
[1736154513855,0.09023617,99179.0,99175.0,0.65589072]
[1736154514152,1.7e-07,99179.0,99178.0,0.050432]
[1736154514561,0.12022142,99183.0,99178.0,0.411232]
[1736154514852,0.18057394,99195.0,99194.0,0.050423]
[1736154514853,9.4e-07,99195.0,99194.0,0.050423]
[1736154515047,0.1,99200.0,99199.0,0.050421]
[1736154515657,0.1,99200.0,99199.0,0.390421]
[1736154516549,0.1,99200.0,99199.0,0.65587872]
[1736154516950,0.1,99200.0,99199.0,0.65687872]
[1736154517554,0.1,99200.0,99199.0,0.66780904]
[1736154518459,0.1,99200.0,99199.0,0.67180904]
[1736154519458,0.0692,99233.0,99200.0,0.3253]
[1736154519754,0.118507,99227.0,99216.0,0.06410438]
[1736154519957,0.118507,99227.0,99222.0,0.050409]
[1736154520147,0.050408,99224.0,99223.0,0.050409]
[1736154521257,0.6608,99224.0,99205.0,0.050417]
[1736154521452,0.3608,99207.0,99204.0,0.24110637]
[1736154521758,0.3608,99207.0,99205.0,0.050418]
[1736154521759,0.2103,99206.0,99205.0,0.050418]
[1736154523054,0.2143,99206.0,99205.0,0.050418]
[1736154524351,0.2133,99206.0,99205.0,0.050418]
[1736154524658,0.2153,99206.0,99205.0,0.050418]
[1736154525060,0.2123,99206.0,99205.0,0.050418]
[1736154525262,0.2153,99206.0,99205.0,0.050418]
[1736154526149,0.2103,99206.0,99205.0,0.050418]
[1736154526354,0.2103,99206.0,99205.0,0.051418]
[1736154526960,0.2113,99206.0,99205.0,0.050418]
[1736154528356,0.2103,99206.0,99205.0,0.050418]
[1736154529767,0.1411,99206.0,99205.0,0.050418]
[1736154530965,0.0686,99206.0,99205.0,0.050418]
[1736154543173,0.0686,99206.0,99205.0,0.23124524]
[1736154544374,0.0686,99206.0,99205.0,0.050418]
[1736154545262,0.3608,99209.0,99205.0,0.050418]
[1736154545467,0.3608,99209.0,99208.0,0.050416]
[1736154545866,0.3608,99209.0,99208.0,0.390416]
[1736154546579,0.3628,99209.0,99208.0,0.390416]
[1736154547077,0.3618,99209.0,99208.0,0.390416]
[1736154547282,0.3618,99209.0,99208.0,0.392416]
[1736154547669,0.3618,99209.0,99208.0,0.052416]
[1736154547877,0.3608,99209.0,99208.0,0.056416]
[1736154548470,0.004,99209.0,99208.0,0.052416]
[1736154548785,0.004,99209.0,99208.0,0.29352237]
[1736154549078,0.004,99209.0,99208.0,0.63152237]
[1736154549574,0.3608,99218.0,99217.0,0.050412]
[1736154552581,0.15033743,99227.0,99226.0,0.050407]
[1736154553278,0.15033743,99228.0,99227.0,0.050407]
[1736154554784,0.3608,99232.0,99231.0,0.050405]
[1736154560688,0.411204,99232.0,99231.0,0.050405]
[1736154565388,0.3608,99232.0,99231.0,0.050405]
[1736154566887,0.411204,99232.0,99231.0,0.050405]
[1736154567280,0.050409,99225.0,99224.0,0.050407]
[1736154567590,0.050409,99223.0,99222.0,0.18127988]
[1736154567992,0.050409,99222.0,99221.0,0.18127988]
[1736154568785,0.050409,99222.0,99221.0,0.23168988]
[1736154569188,0.050409,99222.0,99221.0,0.23268988]
[1736154569599,0.050409,99222.0,99221.0,0.05141]
[1736154570590,0.050409,99222.0,99221.0,0.05441]
[1736154572386,0.06087384,99222.0,99221.0,0.05441]
[1736154594398,0.42167384,99222.0,99221.0,0.05441]
[1736154594599,0.3608,99222.0,99221.0,0.05441]
[1736154596701,0.411209,99222.0,99221.0,0.05441]
[1736154600813,0.56185184,99222.0,99221.0,0.05441]
[1736154602510,0.411209,99222.0,99221.0,0.05441]
[1736154604015,0.3608,99222.0,99221.0,0.05441]
[1736154604511,0.3608,99222.0,99221.0,0.19291]
[1736154605515,0.15064284,99225.0,99224.0,0.050408]
[1736154605909,0.15064284,99228.0,99221.0,0.19291]
[1736154606215,0.15064284,99228.0,99227.0,0.050407]
[1736154607116,0.3608,99229.0,99228.0,0.050406]
[1736154607311,0.411206,99229.0,99228.0,0.050406]
[1736154608319,0.411206,99229.0,99228.0,0.2317929]
[1736154610111,0.411206,99229.0,99228.0,0.1823869]
[1736154610421,0.46022769,99229.0,99228.0,0.001]
[1736154619512,0.46022769,99229.0,99228.0,0.051406]
[1736154624115,0.40982169,99229.0,99228.0,0.051406]
[1736154625127,0.3608,99229.0,99228.0,0.051406]
[1736154628116,0.3608,99229.0,99228.0,0.06179318]
[1736154628624,0.050405,99231.0,99228.0,0.06179318]
[1736154628824,0.050405,99231.0,99230.0,0.050405]
[1736154644136,0.050405,99231.0,99230.0,0.23166746]
[1736154645336,0.050405,99231.0,99230.0,0.050405]
[1736154650643,0.3608,99234.0,99233.0,0.050404]
[1736154650840,0.3608,99234.0,99233.0,0.390404]
[1736154651839,0.3618,99234.0,99233.0,0.23177982]
[1736154653029,0.3628,99234.0,99233.0,0.23177982]
[1736154653427,0.51342394,99234.0,99233.0,0.050404]
[1736154654832,0.15262394,99234.0,99233.0,0.050404]
[1736154655034,0.002,99234.0,99233.0,0.050404]
[1736154656639,0.002,99234.0,99233.0,0.33901908]
[1736154657939,0.002,99234.0,99233.0,0.64116311]
[1736154659141,0.002,99234.0,99233.0,0.050404]
[1736154660547,0.002,99234.0,99233.0,0.390404]
[1736154663340,0.09244667,99234.0,99233.0,0.390404]
[1736154664635,0.002,99234.0,99233.0,0.390404]
[1736154667549,0.001,99234.0,99233.0,0.393404]
[1736154668052,0.09044667,99239.0,99233.0,0.393404]
[1736154668347,0.09044667,99240.0,99239.0,0.050401]
[1736154669443,0.09044667,99240.0,99239.0,0.411201]
[1736154669950,0.12059556,99246.0,99245.0,0.050398]
[1736154671145,0.003,99246.0,99245.0,0.050398]
[1736154672353,0.003,99246.0,99245.0,0.390398]
[1736154672543,0.003,99246.0,99245.0,0.63174189]
[1736154673853,0.003,99246.0,99245.0,0.390398]
[1736154675249,0.003,99246.0,99245.0,0.40054502]
[1736154679973,0.001,99246.0,99245.0,0.40154502]
[1736154680360,0.09028857,99261.0,99260.0,0.05039]
[1736154681061,0.0681,99262.0,99261.0,0.050389]
[1736154683366,0.12059556,99266.0,99261.0,0.050389]
[1736154683572,0.12059556,99266.0,99265.0,0.050387]
[1736154683765,0.12059556,99266.0,99265.0,0.390387]
[1736154683967,0.15074445,99272.0,99271.0,0.050384]
[1736154685171,0.15474445,99272.0,99271.0,0.050384]
[1736154685372,0.15674445,99272.0,99271.0,0.050384]
[1736154685569,0.006,99272.0,99271.0,0.050384]
[1736154688178,0.09623443,99272.0,99271.0,0.050384]
[1736154688680,0.09423443,99272.0,99271.0,0.052384]
[1736154689677,0.004,99272.0,99271.0,0.23334234]
[1736154689877,0.0647,99277.0,99276.0,0.050382]
[1736154691070,0.0647,99277.0,99276.0,0.052382]
[1736154691379,0.0647,99277.0,99276.0,0.053382]
[1736154695073,0.09023443,99279.0,99276.0,0.3638]
[1736154695380,0.09023443,99279.0,99278.0,0.050381]
[1736154695682,0.12041875,99286.0,99285.0,0.050377]
[1736154696273,0.17079575,99286.0,99285.0,0.050377]
[1736154696882,0.050377,99286.0,99285.0,0.050377]
[1736154697276,0.052377,99286.0,99285.0,0.050377]
[1736154697481,0.002,99286.0,99285.0,0.050377]
[1736154698684,0.003,99286.0,99285.0,0.050377]
[1736154698881,0.053377,99286.0,99285.0,0.050377]
[1736154700285,0.003,99286.0,99285.0,0.050377]
[1736154700489,0.053377,99286.0,99285.0,0.050377]
[1736154700878,0.003,99286.0,99285.0,0.050377]
[1736154701478,0.053377,99286.0,99285.0,0.050377]
[1736154706679,0.003,99286.0,99285.0,0.050377]
[1736154707079,0.003,99286.0,99285.0,0.390377]
[1736154709291,0.003,99286.0,99285.0,0.57133534]
[1736154710986,0.003,99286.0,99285.0,0.390377]
[1736154711889,0.003,99286.0,99285.0,0.050377]
[1736154712085,0.050379,99282.0,99281.0,0.18099215]
[1736154712291,0.411179,99282.0,99281.0,0.23137115]
[1736154712493,0.050379,99282.0,99281.0,0.23137115]
[1736154713701,0.411179,99282.0,99281.0,0.050379]
[1736154713997,0.3608,99282.0,99281.0,0.050379]
[1736154714190,0.411179,99282.0,99281.0,0.050379]
[1736154718099,0.56192345,99282.0,99281.0,0.050379]
[1736154719293,0.411179,99282.0,99281.0,0.050379]
[1736154719595,0.05038,99280.0,99279.0,0.18099215]
[1736154720400,0.05038,99280.0,99274.0,0.24127779]
[1736154720701,0.050382,99275.0,99274.0,0.29166079]
[1736154721702,0.3608,99282.0,99274.0,0.29166079]
[1736154721703,0.06061524,99280.0,99279.0,0.050379]
[1736154722000,0.050381,99280.0,99279.0,0.050379]
[1736154724092,0.050381,99280.0,99279.0,0.051379]
[1736154727508,0.20095707,99280.0,99279.0,0.051379]
[1736154728610,0.050381,99280.0,99279.0,0.051379]
[1736154732911,0.20091102,99280.0,99279.0,0.051379]
[1736154734208,0.050381,99280.0,99279.0,0.051379]
[1736154738403,0.20091102,99280.0,99279.0,0.051379]
[1736154740305,0.09937854,99280.0,99279.0,0.051379]
[1736154741307,0.050381,99280.0,99279.0,0.051379]
[1736154743019,0.09937854,99280.0,99279.0,0.051379]
[1736154755721,0.09937854,99280.0,99279.0,0.001]
[1736154756122,0.050384,99272.0,99271.0,0.29166179]
[1736154756325,0.411184,99272.0,99271.0,0.29166179]
[1736154756917,0.411184,99272.0,99271.0,0.050384]
[1736154757414,0.411184,99272.0,99271.0,0.052384]
[1736154758324,0.46018154,99272.0,99271.0,0.052384]
[1736154758516,0.47054286,99272.0,99271.0,0.056384]
[1736154763828,0.47054286,99272.0,99271.0,0.006]
[1736154771841,0.050391,99258.0,99257.0,0.24127779]
[1736154772045,0.411191,99258.0,99257.0,0.24127779]
[1736154772937,0.411191,99258.0,99249.0,0.00151125]
[1736154772938,0.050395,99250.0,99249.0,0.00151125]
[1736154773140,0.411195,99250.0,99249.0,0.00151125]
[1736154774649,0.411195,99250.0,99249.0,0.00251125]
[1736154774840,0.411195,99250.0,99249.0,0.00451125]
[1736154776860,0.411195,99250.0,99233.0,0.34]
[1736154776861,0.3608,99250.0,99233.0,0.050403]
[1736154777045,0.411203,99234.0,99233.0,0.050403]
[1736154777644,0.411203,99234.0,99233.0,0.06616007]
[1736154777843,0.411203,99234.0,99233.0,0.01575707]
[1736154778055,0.772003,99234.0,99233.0,0.02875707]
[1736154778359,0.772003,99234.0,99233.0,0.013]
[1736154779256,0.7226,99234.0,99210.0,0.00056]
[1736154779462,0.411214,99212.0,99210.0,0.00056]
[1736154779847,0.411214,99212.0,99211.0,0.01727332]
[1736154780649,0.411214,99212.0,99211.0,0.00351183]
[1736154781243,0.411214,99212.0,99211.0,0.01727401]
[1736154782152,0.411214,99212.0,99211.0,0.00151183]
[1736154783457,0.050417,99208.0,99200.0,0.34]
[1736154783664,0.41122,99201.0,99200.0,0.34]
[1736154783959,0.41122,99201.0,99200.0,0.35576274]
[1736154784656,0.41122,99201.0,99200.0,0.35776274]
[1736154785258,0.41222,99201.0,99200.0,0.35776274]
[1736154786150,0.41222,99201.0,99200.0,0.35576274]
[1736154786459,0.41222,99201.0,99200.0,0.35776274]
[1736154787749,0.41222,99201.0,99200.0,0.342]
[1736154788150,0.41222,99201.0,99200.0,0.35776273]
[1736154790054,0.41222,99201.0,99200.0,0.01776273]
[1736154792466,0.4223902,99201.0,99200.0,0.01776273]
[1736154795058,0.4223902,99201.0,99200.0,0.002]
[1736154802057,0.51226527,99201.0,99200.0,0.002]
[1736154803666,0.54233655,99201.0,99200.0,0.002]
[1736154804860,0.4223902,99201.0,99200.0,0.002]
[1736154809563,0.47142752,99201.0,99200.0,0.002]
[1736154818956,0.47142752,99201.0,99200.0,0.01776355]
[1736154819160,0.46125732,99201.0,99200.0,0.01776355]
[1736154824666,0.46125732,99201.0,99200.0,0.06818355]
[1736154824870,0.46125732,99201.0,99200.0,0.01776355]
[1736154825070,0.46125732,99201.0,99200.0,0.06818355]
[1736154825272,0.46125732,99201.0,99200.0,0.01776355]
[1736154825867,0.41083732,99201.0,99200.0,0.06818355]
[1736154826067,0.41083732,99201.0,99200.0,0.11542]
[1736154826874,0.46125732,99201.0,99200.0,0.11542]
[1736154827871,0.41222,99201.0,99200.0,0.11542]
[1736154828381,0.3618,99201.0,99200.0,0.11542]
[1736154829275,0.3618,99201.0,99200.0,0.12565297]
[1736154829475,0.001,99201.0,99200.0,0.12565297]
[1736154831171,0.001,99201.0,99200.0,0.46565297]
[1736154832295,0.001,99201.0,99200.0,0.70693076]
[1736154833490,0.09019899,99206.0,99205.0,0.050418]
[1736154833991,0.09019899,99207.0,99206.0,0.050417]
[1736154834483,0.09019899,99207.0,99206.0,0.390417]
[1736154835283,0.3608,99209.0,99208.0,0.050416]
[1736154835980,0.3608,99209.0,99208.0,0.390416]
[1736154836379,0.3608,99209.0,99208.0,0.391416]
[1736154838094,0.3608,99209.0,99208.0,0.393416]
[1736154838897,0.09019899,99212.0,99211.0,0.050415]
[1736154839191,0.09019899,99213.0,99212.0,0.050414]
[1736154840493,0.3608,99213.0,99212.0,0.050414]
[1736154846386,0.3608,99213.0,99212.0,0.06063485]
[1736154847498,0.3608,99213.0,99212.0,0.050414]
[1736154851695,0.050413,99214.0,99213.0,0.050414]
[1736154851898,0.411213,99214.0,99213.0,0.050414]
[1736154853898,0.53149352,99214.0,99213.0,0.050414]
[1736154855801,0.411213,99214.0,99213.0,0.050414]
[1736154863604,0.3608,99214.0,99213.0,0.050414]
[1736154865311,0.3608,99214.0,99213.0,0.29169179]
[1736154868213,0.3608,99214.0,99213.0,0.050414]
[1736154875014,0.3608,99214.0,99213.0,0.29169179]
[1736154876515,0.3608,99214.0,99213.0,0.050414]
[1736154885219,0.3608,99214.0,99213.0,0.29169179]
[1736154885619,0.1504023,99218.0,99217.0,0.050412]
[1736154886621,0.1504023,99221.0,99220.0,0.05041]
[1736154887821,0.5112023,99223.0,99222.0,0.050409]
[1736154889130,0.3608,99223.0,99222.0,0.050409]
[1736154889331,0.413209,99223.0,99222.0,0.050409]
[1736154889730,0.417209,99223.0,99222.0,0.050409]
[1736154890423,0.056409,99223.0,99222.0,0.050409]
[1736154897335,0.056409,99223.0,99222.0,0.23177805]
[1736154898522,0.056409,99223.0,99222.0,0.050409]
[1736154902736,0.006,99223.0,99222.0,0.050409]
[1736154905135,0.056409,99223.0,99222.0,0.050409]
[1736154912938,0.006,99223.0,99222.0,0.050409]
[1736154914339,0.1564023,99223.0,99222.0,0.050409]
[1736154915847,0.1564023,99223.0,99222.0,0.23177805]
[1736154916940,0.05502034,99223.0,99222.0,0.050409]
[1736154917142,0.10542934,99223.0,99222.0,0.050409]
[1736154918447,0.056409,99223.0,99222.0,0.050409]
[1736154919753,0.10542934,99223.0,99222.0,0.050409]
[1736154921354,0.2860389,99223.0,99222.0,0.050409]
[1736154924055,0.10542934,99223.0,99222.0,0.050409]
[1736154929754,0.46622934,99223.0,99222.0,0.050409]
[1736154931657,0.41582034,99223.0,99222.0,0.050409]
[1736154933157,0.3668,99223.0,99222.0,0.050409]
[1736154933358,0.006,99223.0,99222.0,0.050409]
[1736154940452,0.056409,99223.0,99222.0,0.050409]
[1736154943852,0.46623152,99223.0,99222.0,0.050409]
[1736154948261,0.050411,99218.0,99217.0,0.23195465]
[1736154949465,0.051411,99218.0,99217.0,0.23195465]
[1736154949766,0.051411,99218.0,99217.0,0.050411]
[1736154950553,0.412211,99218.0,99217.0,0.050411]
[1736154951359,0.414211,99218.0,99217.0,0.050411]
[1736154951761,0.56471495,99218.0,99217.0,0.050411]
[1736154953366,0.46323703,99218.0,99217.0,0.050411]
[1736154954568,0.414211,99218.0,99217.0,0.050411]
[1736154955659,0.56470537,99218.0,99217.0,0.050411]
[1736154958062,0.414211,99218.0,99217.0,0.050411]
[1736154962073,0.46323804,99218.0,99217.0,0.050411]
[1736154963174,0.46323804,99218.0,99211.0,0.18154365]
[1736154963367,0.050414,99212.0,99211.0,0.18154365]
[1736154965179,0.050417,99207.0,99206.0,0.050417]
[1736154965378,0.411217,99207.0,99206.0,0.050417]
[1736154966678,0.411217,99207.0,99206.0,0.052417]
[1736154967476,0.411217,99207.0,99206.0,0.002]
[1736154969383,0.46025134,99207.0,99206.0,0.002]
[1736154970675,0.5614905,99207.0,99206.0,0.002]
[1736154971084,0.5614905,99207.0,99206.0,0.052417]
[1736154971783,0.411217,99207.0,99206.0,0.052417]
[1736154986686,0.5614905,99207.0,99206.0,0.052417]
[1736154988890,0.5110735,99207.0,99206.0,0.052417]
[1736154989490,0.40983083,99207.0,99206.0,0.052417]
[1736154991098,0.48126093,99207.0,99206.0,0.23396065]
[1736154993984,0.3608,99207.0,99206.0,0.052417]
[1736155002694,0.411217,99207.0,99206.0,0.052417]
[1736155002901,0.411217,99207.0,99206.0,0.002]
[1736155003395,0.460717,99207.0,99206.0,0.002]
[1736155004405,0.46024776,99207.0,99206.0,0.002]
[1736155004595,0.46024776,99207.0,99206.0,0.052417]
[1736155005896,0.56180869,99207.0,99206.0,0.052417]
[1736155009705,0.050417,99207.0,99206.0,0.052417]
[1736155010012,0.411217,99207.0,99206.0,0.052417]
[1736155012811,0.56180869,99207.0,99206.0,0.052417]
[1736155014801,0.20100869,99207.0,99206.0,0.052417]
[1736155015010,0.56180869,99207.0,99206.0,0.052417]
[1736155015813,0.20100869,99207.0,99206.0,0.052417]
[1736155016008,0.56180869,99207.0,99206.0,0.052417]
[1736155019304,0.20100869,99207.0,99206.0,0.052417]
[1736155019500,0.56180869,99207.0,99206.0,0.052417]
[1736155022711,0.411217,99207.0,99206.0,0.052417]
[1736155022916,0.411217,99207.0,99206.0,0.002]
[1736155024409,0.46025016,99207.0,99206.0,0.002]
[1736155043921,0.46025016,99207.0,99195.0,0.24190844]
[1736155043922,0.40983316,99207.0,99195.0,0.24190844]
[1736155044135,0.411222,99196.0,99195.0,0.24190844]
[1736155044321,0.3608,99196.0,99194.0,0.24190844]
[1736155044633,0.092623,99195.0,99194.0,0.24190844]
[1736155046233,0.050424,99192.0,99191.0,0.050425]
[1736155047636,0.20105697,99192.0,99191.0,0.050425]
[1736155047827,0.20105697,99192.0,99191.0,0.053425]
[1736155048221,0.20105697,99192.0,99191.0,0.057425]
[1736155048439,0.20205697,99192.0,99191.0,0.057425]
[1736155048937,0.051424,99192.0,99191.0,0.057425]
[1736155051726,0.20200137,99192.0,99191.0,0.057425]
[1736155053741,0.20200137,99192.0,99191.0,0.007]
[1736155054438,0.412224,99192.0,99191.0,0.007]
[1736155054634,0.050429,99184.0,99183.0,0.00151225]
[1736155054840,0.411229,99184.0,99183.0,0.00151225]
[1736155055031,0.411229,99184.0,99183.0,0.017278]
[1736155056136,0.050436,99170.0,99169.0,0.29234444]
[1736155056444,0.411236,99170.0,99169.0,0.30811161]
[1736155057341,0.411236,99170.0,99169.0,0.002]
[1736155057642,0.412236,99170.0,99169.0,0.004]
[1736155061834,0.42217398,99170.0,99169.0,0.004]
[1736155063937,0.412236,99170.0,99169.0,0.004]
[1736155065138,0.3618,99170.0,99169.0,0.054436]
[1736155065343,0.2937,99170.0,99169.0,0.394436]
[1736155065540,0.001,99170.0,99169.0,0.755236]
[1736155067740,0.001,99170.0,99169.0,0.76517494]
[1736155072251,0.051436,99170.0,99169.0,0.06437494]
[1736155072949,0.051436,99170.0,99169.0,0.004]
[1736155074350,0.14154254,99170.0,99169.0,0.004]
[1736155076056,0.17176344,99170.0,99169.0,0.004]
[1736155078251,0.051436,99170.0,99169.0,0.004]
[1736155078954,0.051436,99170.0,99169.0,0.054436]
[1736155079946,0.17176344,99170.0,99169.0,0.054436]
[1736155081859,0.051436,99170.0,99169.0,0.054436]
[1736155083553,0.051436,99170.0,99169.0,0.004]
[1736155086063,0.2018453,99170.0,99169.0,0.004]
[1736155087256,0.2008453,99170.0,99169.0,0.002]
[1736155087458,0.2008453,99170.0,99169.0,0.004]
[1736155087764,0.050436,99170.0,99169.0,0.004]
[1736155088462,0.050436,99170.0,99169.0,0.054436]
[1736155090257,0.20093261,99170.0,99169.0,0.054436]
[1736155091865,0.050436,99170.0,99169.0,0.054436]
[1736155102580,0.09948499,99170.0,99169.0,0.054436]
[1736155114896,0.09948499,99170.0,99169.0,0.004]
[1736155117288,0.09948499,99170.0,99169.0,0.054436]
[1736155118098,0.04904899,99170.0,99169.0,0.054436]
[1736155119495,0.3608,99171.0,99170.0,0.050436]
[1736155119696,0.050434,99174.0,99173.0,0.050434]
[1736155120996,0.050434,99174.0,99173.0,0.052434]
[1736155122797,0.050434,99174.0,99173.0,0.053434]
[1736155123204,0.12045985,99174.0,99173.0,0.053434]
[1736155127511,0.12045985,99175.0,99174.0,0.050434]
[1736155129608,0.12045985,99175.0,99174.0,0.051434]
[1736155130603,0.12045985,99176.0,99175.0,0.050433]
[1736155131816,0.12045985,99176.0,99175.0,0.051433]
[1736155132506,0.12045985,99176.0,99175.0,0.052433]
[1736155134203,0.3608,99182.0,99181.0,0.05043]
[1736155134804,0.3608,99182.0,99181.0,0.39043]
[1736155135514,0.3618,99182.0,99181.0,0.39043]
[1736155135711,0.3628,99182.0,99181.0,0.39043]
[1736155142714,0.002,99182.0,99181.0,0.39043]
[1736155149626,0.002,99182.0,99181.0,0.63233844]
[1736155153631,0.09229083,99182.0,99181.0,0.63233844]
[1736155155228,0.09229083,99182.0,99181.0,0.39043]
[1736155158835,0.002,99182.0,99181.0,0.39043]
[1736155161654,0.3608,99193.0,99181.0,0.39043]
[1736155161832,0.3608,99193.0,99192.0,0.050424]
[1736155162021,0.0828,99195.0,99194.0,0.050423]
[1736155162332,0.15066624,99198.0,99197.0,0.050422]
[1736155162836,0.15066624,99198.0,99197.0,0.751222]
[1736155163028,0.15066624,99199.0,99198.0,0.050421]
[1736155164532,0.0817,99211.0,99205.0,0.050418]
[1736155166126,0.0817,99211.0,99205.0,0.051418]
[1736155166522,0.0817,99211.0,99205.0,0.412218]
[1736155167627,0.0817,99211.0,99205.0,0.415218]
[1736155170052,0.0817,99211.0,99205.0,0.42523574]
[1736155170438,0.0817,99211.0,99205.0,0.06443574]
[1736155171633,0.0817,99211.0,99205.0,0.054418]
[1736155171836,0.050416,99209.0,99205.0,0.054418]
[1736155172134,0.050416,99209.0,99202.0,0.18107148]
[1736155173036,0.050416,99209.0,99205.0,0.050418]
[1736155173538,0.093817,99206.0,99205.0,0.050418]
[1736155175041,0.093817,99206.0,99205.0,0.051418]
[1736155175238,0.454617,99206.0,99205.0,0.051418]
[1736155177133,0.050421,99200.0,99199.0,0.050418]
[1736155178447,0.059421,99200.0,99199.0,0.050418]